fUST/lending_fUST_20250123
["ID","MTS","AMOUNT","RATE_DAILY","PERIOD"]
[350016199,1737568237472,-500.0,0.00019178,2]
[350016200,1737568237481,-500.0,0.00019178,2]
[350016201,1737568237491,-500.80580024,0.00019178,2]
[350016202,1737568237500,-500.0,0.00019178,2]
[350016203,1737568237509,-1265.7,0.00019178,2]
[350016204,1737568237519,-725.07,0.00019178,2]
[350016205,1737568237528,-7688.43,0.00019178,2]
[350016206,1737568237537,-2562.21,0.00019178,2]
[350016207,1737568237547,-500.0,0.00019178,2]
[350016208,1737568237555,-629.04,0.00019178,2]
[350016209,1737568237565,-500.9496715,0.00019178,2]
[350016210,1737568237574,-501.01067786,0.00019178,2]
[350016211,1737568237583,-13920.05,0.00019178,2]
[350016212,1737568237592,-1541.07,0.00019178,2]
[350016213,1737568237602,-502.4177123,0.00019178,2]
[350016214,1737568237611,-500.95099606,0.00019178,2]
[350016215,1737568237620,-500.0,0.00019178,2]
[350016216,1737568237630,-501.68655702,0.00019178,2]
[350016217,1737568237639,-948.47,0.00019178,2]
[350016218,1737568237656,-882.07,0.00019178,2]
[350016219,1737568237665,-500.0,0.00019178,2]
[350016222,1737568237675,-3649.98,0.00019178,2]
[350016223,1737568237683,-617.5,0.00019178,2]
[350016224,1737568237693,-1271.06,0.00019178,2]
[350016225,1737568237703,-501.18702735,0.00019178,2]
[350016226,1737568237716,-500.0,0.00019178,2]
[350016227,1737568237726,-497.14797117,0.00019178,2]
[350016230,1737568237736,-1358.55,0.00019178,2]
[350016231,1737568237745,-500.0,0.00019178,2]
[350016232,1737568237754,-500.0,0.00019178,2]
[350016233,1737568237763,-500.0,0.00019178,2]
[350016234,1737568237771,-502.4174076,0.00019178,2]
[350016235,1737568237780,-2896.29,0.00019178,2]
[350016236,1737568237789,-500.0,0.00019178,2]
[350016237,1737568237799,-500.0,0.00019178,2]
[350016238,1737568237807,-916.67,0.00019178,2]
[350016239,1737568237817,-2241.29,0.00019178,2]
[350016240,1737568237827,-500.0,0.00019178,2]
[350016241,1737568237836,-500.0,0.00019178,2]
[350016242,1737568237845,-1251.92,0.00019178,2]
[350016243,1737568237855,-2580.82,0.00019178,2]
[350016244,1737568237864,-6526.62,0.00019178,2]
[350016245,1737568237873,-899.7,0.00019178,2]
[350016246,1737568237882,-528.47,0.00019178,2]
[350016247,1737568237891,-476.41688872,0.00019178,2]
[350016248,1737568237900,-700.07,0.00019178,2]
[350016249,1737568237909,-891.5,0.00019178,2]
[350016250,1737568237919,-500.0,0.00019178,2]
[350016251,1737568237928,-274.63089696,0.00019178,2]
[350016252,1737568237938,-500.0,0.00019178,2]
[350016253,1737568237948,-46174.43,0.00019178,2]
[350016254,1737568237957,-999.59,0.00019178,2]
[350016255,1737568237969,-10336.96,0.00019178,2]
[350016256,1737568237978,-500.0,0.00019178,2]
[350016257,1737568237987,-2756.43,0.00019178,2]
[350016258,1737568237996,-500.0,0.00019178,2]
[350016260,1737568238007,-1472.93,0.00019178,2]
[350016262,1737568238018,-2282.37,0.00019178,2]
[350016264,1737568238027,-302.8788636,0.00019273,2]
[350016266,1737568238037,-1671.37300364,0.00019315,5]
[350016268,1737568238052,-605.93196677,0.00019315,5]
[350016270,1737568238063,-500.0,0.00019315,3]
[350016272,1737568238072,-500.0,0.00019315,3]
[350016274,1737568238081,-500.0,0.00019315,3]
[350016276,1737568238091,-500.0,0.00019315,3]
[350016278,1737568238100,-500.0,0.00019315,3]
[350016280,1737568238109,-500.0,0.00019315,3]
[350016282,1737568238119,-500.0,0.00019315,3]
[350016284,1737568238128,-500.0,0.00019315,3]
[350016286,1737568238138,-500.0,0.00019315,3]
[350016288,1737568238147,-940.94,0.00019315,3]
[350016290,1737568238156,-500.0,0.00019315,3]
[350016292,1737568238166,-939.26,0.00019315,3]
[350016294,1737568238175,-363.63556264,0.00019315,3]
[350016296,1737568238184,-515.43,0.00019315,3]
[350016298,1737568238193,-500.0,0.00019315,3]
[350016300,1737568238203,-500.0,0.00019315,3]
[350016302,1737568238212,-500.0,0.00019315,3]
[350016304,1737568238222,-988.87,0.00019315,3]
[350016306,1737568238232,-227.8432055,0.00019315,3]
[350016308,1737568238241,-500.0,0.00019315,3]
[350016310,1737568238250,-500.0,0.00019315,3]
[350016312,1737568238259,-694.12,0.00019315,3]
[350016314,1737568238270,-1008.91,0.00019315,3]
[350016316,1737568238279,-500.0,0.00019315,3]
[350016318,1737568238289,-500.0,0.00019315,3]
[350016320,1737568238299,-500.0,0.00019315,3]
[350016322,1737568238309,-500.0,0.00019315,3]
[350016324,1737568238318,-500.0,0.00019315,3]
[350016326,1737568238328,-500.0,0.00019315,3]
[350016328,1737568238337,-500.0,0.00019315,3]
[350016330,1737568238347,-500.0,0.00019315,3]
[350016332,1737568238356,-500.0,0.00019315,3]
[350016334,1737568238366,-500.0,0.00019315,3]
[350016337,1737568238380,-500.0,0.00019315,3]
[350016339,1737568238390,-766.02,0.00019315,3]
[350016342,1737568238400,-500.0,0.00019315,3]
[350016345,1737568238411,-500.0,0.00019315,3]
[350016348,1737568238421,-500.0,0.00019315,3]
[350016351,1737568238430,-603.56,0.00019315,3]
[350016353,1737568238439,-376.89834006,0.00019315,3]
[350016355,1737568238449,-500.0,0.00019315,3]
[350016356,1737568238458,-500.0,0.00019315,3]
[350016358,1737568238467,-500.0,0.00019315,3]
[350016361,1737568238476,-528.13,0.00019315,3]
[350016363,1737568238485,-1288.69,0.00019315,2]
[350016365,1737568238495,-500.0,0.00019315,3]
[350016367,1737568238503,-911.73,0.00019315,3]
[350016369,1737568238513,-2501.09,0.00019315,3]
[350016371,1737568238522,-500.0,0.00019315,3]
[350016373,1737568238531,-502.0,0.00019315,3]
[350016375,1737568238540,-500.0,0.00019315,3]
[350016377,1737568238550,-500.0,0.00019315,3]
[350016379,1737568238560,-500.0,0.00019315,3]
[350016381,1737568238569,-1129.83,0.00019315,3]
[350016383,1737568238578,-4919.62,0.00019315,3]
[350016385,1737568238587,-1294.38,0.00019315,3]
[350016387,1737568238597,-546.06,0.00019315,3]
[350016388,1737568238606,-940.96,0.00019315,3]
[350016389,1737568238615,-792.61,0.00019315,3]
[350016390,1737568238624,-500.0,0.00019315,3]
[350016391,1737568238633,-1499.48,0.00019315,3]
[350016392,1737568238642,-748.01,0.00019315,3]
[350016393,1737568238651,-500.0,0.00019315,3]
[350016394,1737568238660,-28950.54,0.00019315,3]
[350016395,1737568238669,-500.0,0.00019315,3]
[350016396,1737568238678,-500.0,0.00019315,3]
[350016397,1737568238687,-500.0,0.00019315,3]
[350016398,1737568238696,-1265.7,0.00019315,3]
[350016399,1737568238705,-725.07,0.00019315,3]
[350016400,1737568238714,-7688.43,0.00019315,3]
[350016401,1737568238724,-2562.21,0.00019315,3]
[350016402,1737568238733,-500.0,0.00019315,3]
[350016403,1737568238744,-629.04,0.00019315,3]
[350016404,1737568238754,-13920.05,0.00019315,3]
[350016405,1737568238763,-1541.07,0.00019315,3]
[350016406,1737568238772,-500.0,0.00019315,3]
[350016408,1737568238781,-948.47,0.00019315,3]
[350016409,1737568238791,-882.07,0.00019315,3]
[350016411,1737568238801,-500.0,0.00019315,3]
[350016413,1737568238810,-3649.98,0.00019315,3]
[350016415,1737568238819,-617.5,0.00019315,3]
[350016417,1737568238828,-1271.06,0.00019315,3]
[350016419,1737568238837,-500.0,0.00019315,3]
[350016421,1737568238847,-1358.55,0.00019315,3]
[350016424,1737568238856,-500.0,0.00019315,3]
[350016426,1737568238865,-2896.29,0.00019315,3]
[350016428,1737568238875,-500.0,0.00019315,3]
[350016430,1737568238884,-916.67,0.00019315,3]
[350016432,1737568238894,-2241.29,0.00019315,3]
[350016434,1737568238903,-500.0,0.00019315,3]
[350016436,1737568238912,-500.0,0.00019315,3]
[350016438,1737568238921,-1251.92,0.00019315,3]
[350016440,1737568238931,-2580.82,0.00019315,3]
[350016442,1737568238940,-6526.62,0.00019315,3]
[350016444,1737568238949,-899.7,0.00019315,3]
[350016446,1737568238959,-528.47,0.00019315,3]
[350016448,1737568238970,-700.07,0.00019315,3]
[350016450,1737568238980,-891.5,0.00019315,3]
[350016452,1737568238989,-500.0,0.00019315,3]
[350016454,1737568238999,-46174.43,0.00019315,3]
[350016456,1737568239009,-10336.96,0.00019315,3]
[350016458,1737568239018,-999.59,0.00019315,3]
[350016460,1737568239027,-500.0,0.00019315,3]
[350016462,1737568239037,-2756.43,0.00019315,3]
[350016464,1737568239047,-635.74691375,0.00019315,3]
[350016466,1737568239057,-1472.93,0.00019315,3]
[350016468,1737568239066,-2282.37,0.00019315,3]
[350016470,1737568239077,-500.0,0.00019452,3]
[350016472,1737568239086,-500.0,0.00019452,3]
[350016473,1737568239095,-500.0,0.00019452,3]
[350016475,1737568239104,-500.0,0.00019452,3]
[350016477,1737568239113,-500.0,0.00019452,3]
[350016479,1737568239123,-500.0,0.00019452,3]
[350016481,1737568239131,-500.0,0.00019452,3]
[350016483,1737568239140,-500.0,0.00019452,3]
[350016485,1737568239153,-500.0,0.00019452,3]
[350016487,1737568239165,-940.94,0.00019452,3]
[350016489,1737568239176,-500.0,0.00019452,3]
[350016491,1737568239185,-939.26,0.00019452,3]
[350016493,1737568239194,-515.43,0.00019452,3]
[350016495,1737568239204,-500.0,0.00019452,3]
[350016497,1737568239213,-500.0,0.00019452,3]
[350016499,1737568239222,-500.0,0.00019452,3]
[350016501,1737568239231,-988.87,0.00019452,3]
[350016503,1737568239240,-228.06815235,0.00019452,3]
[350016505,1737568239250,-500.0,0.00019452,3]
[350016507,1737568239259,-694.12,0.00019452,3]
[350016509,1737568239268,-1008.91,0.00019452,3]
[350016511,1737568239277,-500.0,0.00019452,3]
[350016513,1737568239286,-525.83376995,0.00019452,3]
[350016515,1737568239302,-500.0,0.00019452,3]
[350016526,1737568239397,-500.0,0.00019452,3]
[350016528,1737568239407,-500.0,0.00019452,3]
[350016530,1737568239416,-500.0,0.00019452,3]
[350016532,1737568239426,-500.0,0.00019452,3]
[350016534,1737568239435,-500.0,0.00019452,3]
[350016536,1737568239444,-500.0,0.00019452,3]
[350016538,1737568239454,-500.0,0.00019452,3]
[350016540,1737568239464,-500.0,0.00019452,3]
[350016542,1737568239473,-766.02,0.00019452,3]
[350016544,1737568239483,-500.0,0.00019452,3]
[350016546,1737568239492,-500.0,0.00019452,3]
[350016548,1737568239501,-603.56,0.00019452,3]
[350016550,1737568239510,-500.0,0.00019452,3]
[350016552,1737568239520,-500.0,0.00019452,3]
[350016555,1737568239529,-500.0,0.00019452,3]
[350016557,1737568239539,-528.13,0.00019452,3]
[350016559,1737568239549,-1288.69,0.00019452,2]
[350016561,1737568239558,-500.0,0.00019452,3]
[350016563,1737568239569,-911.73,0.00019452,3]
[350016564,1737568239578,-2501.09,0.00019452,3]
[350016566,1737568239587,-500.0,0.00019452,3]
[350016568,1737568239598,-502.0,0.00019452,3]
[350016570,1737568239608,-500.0,0.00019452,3]
[350016572,1737568239617,-500.0,0.00019452,3]
[350016574,1737568239628,-500.0,0.00019452,3]
[350016576,1737568239638,-1129.83,0.00019452,3]
[350016578,1737568239648,-4919.62,0.00019452,3]
[350016579,1737568239658,-1294.38,0.00019452,3]
[350016580,1737568239667,-546.06,0.00019452,3]
[350016581,1737568239677,-940.96,0.00019452,3]
[350016582,1737568239686,-792.61,0.00019452,3]
[350016583,1737568239696,-500.0,0.00019452,3]
[350016584,1737568239705,-1499.48,0.00019452,3]
[350016585,1737568239715,-748.01,0.00019452,3]
[350016586,1737568239725,-500.0,0.00019452,3]
[350016587,1737568239734,-28950.54,0.00019452,3]
[350016588,1737568239746,-500.0,0.00019452,3]
[350016589,1737568239756,-500.0,0.00019452,3]
[350016590,1737568239765,-500.0,0.00019452,3]
[350016591,1737568239775,-1265.7,0.00019452,3]
[350016592,1737568239784,-725.07,0.00019452,3]
[350016593,1737568239793,-7688.43,0.00019452,3]
[350016594,1737568239802,-2562.21,0.00019452,3]
[350016595,1737568239811,-500.0,0.00019452,3]
[350016596,1737568239820,-629.04,0.00019452,3]
[350016597,1737568239829,-13920.05,0.00019452,3]
[350016598,1737568239837,-1541.07,0.00019452,3]
[350016599,1737568239847,-500.0,0.00019452,3]
[350016600,1737568239856,-948.47,0.00019452,3]
[350016601,1737568239865,-882.07,0.00019452,3]
[350016602,1737568239874,-500.0,0.00019452,3]
[350016603,1737568239883,-3649.98,0.00019452,3]
[350016604,1737568239892,-617.5,0.00019452,3]
[350016605,1737568239902,-1271.06,0.00019452,3]
[350016606,1737568239910,-500.0,0.00019452,3]
[350016607,1737568239920,-1358.55,0.00019452,3]
[350016608,1737568239929,-500.0,0.00019452,3]
[350016609,1737568239939,-2896.29,0.00019452,3]
[350016610,1737568239948,-500.0,0.00019452,3]
[350016611,1737568239958,-916.67,0.00019452,3]
[350016612,1737568239970,-2241.29,0.00019452,3]
[350016613,1737568239980,-500.0,0.00019452,3]
[350016614,1737568239989,-500.0,0.00019452,3]
[350016615,1737568239998,-1251.92,0.00019452,3]
[350016616,1737568240008,-2580.82,0.00019452,3]
[350016617,1737568240018,-4166.83672033,0.00019452,3]
[350016618,1737568240065,-2359.78327967,0.00019452,3]
[350016619,1737568240075,-899.7,0.00019452,3]
[350016620,1737568240084,-528.47,0.00019452,3]
[350016621,1737568240094,-25.82930905,0.00019452,3]
[350016622,1737568240112,-674.24069095,0.00019452,3]
[350016623,1737568240121,-277.16825459,0.00019452,3]
[350016644,1737568240326,-614.33174541,0.00019452,3]
[350016646,1737568240335,-18.81607869,0.00019452,3]
[350016648,1737568240346,-481.18392131,0.00019452,3]
[350016650,1737568240356,-6943.01587607,0.00019452,3]
[350016653,1737568240375,-324.0359033,0.00019452,3]
[350016682,1737568243361,-500.0,0.00019178,2]
[350016683,1737568243371,-2265.99,0.00019178,2]
[350016685,1737568243380,-797.76,0.00019178,2]
[350016687,1737568243389,-1201.83,0.00019178,2]
[350016689,1737568243398,-500.0,0.00019315,3]
[350016691,1737568243407,-2060.42000003,0.00019315,3]
[350016693,1737568243418,-205.56999997,0.00019315,3]
[350016694,1737568243428,-797.76,0.00019315,3]
[350016696,1737568243437,-1201.83,0.00019315,3]
[350016698,1737568243446,-552.70399764,0.00019452,3]
[350016913,1737568246267,-991.27,0.00019178,2]
[350016915,1737568246277,-991.27,0.00019315,3]
[350016917,1737568246286,-37828.36,0.00019452,3]
[350017014,1737568963500,171.189837,0.00013973,2]
[350017083,1737569432759,-406.3,0.0001875,2]
[350017085,1737569432768,-150.0,0.000189,2]
[350017087,1737569432778,-302.8788636,0.00019,2]
[350017089,1737569432787,-174.29161901,0.00019078,2]
[350017091,1737569432797,-516.81200488,0.00019078,2]
[350017093,1737569432806,-300.0,0.00019176,2]
[350017095,1737569432816,-250.0,0.00019177,2]
[350017097,1737569432825,-500.0,0.00019177,2]
[350017099,1737569432834,-500.0,0.00019177,2]
[350017101,1737569432843,-482.5,0.00019177,2]
[350017103,1737569432853,-226.0,0.00019177,2]
[350017105,1737569432862,-162.27165446,0.00019177,2]
[350017107,1737569432871,-500.0,0.00019177,2]
[350017109,1737569432881,-500.0,0.00019177,2]
[350017111,1737569432890,-349.4922532,0.00019177,2]
[350017113,1737569432899,-500.0,0.00019178,2]
[350017115,1737569432909,-500.0,0.00019178,2]
[350017117,1737569432918,-500.0,0.00019178,2]
[350017119,1737569432927,-391.91201534,0.00019178,2]
[350017121,1737569432939,-500.0,0.00019178,2]
[350017123,1737569432948,-500.0,0.00019178,2]
[350017126,1737569432958,-500.0,0.00019178,2]
[350017128,1737569432970,-500.0,0.00019178,2]
[350017130,1737569432979,-500.0,0.00019178,2]
[350017132,1737569432988,-500.0,0.00019178,2]
[350017134,1737569432998,-500.0,0.00019178,2]
[350017136,1737569433008,-500.0,0.00019178,2]
[350017138,1737569433018,-500.0,0.00019178,2]
[350017140,1737569433028,-500.0,0.00019178,2]
[350017142,1737569433038,-500.0,0.00019178,2]
[350017144,1737569433048,-500.0,0.00019178,2]
[350017146,1737569433058,-908.67,0.00019178,2]
[350017148,1737569433068,-994.82,0.00019178,2]
[350017150,1737569433078,-500.0,0.00019178,2]
[350017152,1737569433087,-500.0,0.00019178,2]
[350017154,1737569433097,-500.0,0.00019178,2]
[350017156,1737569433107,-500.0,0.00019178,2]
[350017158,1737569433117,-500.0,0.00019178,2]
[350017160,1737569433127,-500.0,0.00019178,2]
[350017162,1737569433137,-946.73,0.00019178,2]
[350017164,1737569433147,-500.0,0.00019178,2]
[350017166,1737569433156,-758.41,0.00019178,2]
[350017168,1737569433165,-500.0,0.00019178,2]
[350017170,1737569433175,-1055.56,0.00019178,2]
[350017172,1737569433185,-500.0,0.00019178,2]
[350017174,1737569433196,-500.0,0.00019178,2]
[350017177,1737569433206,-500.0,0.00019178,2]
[350017178,1737569433216,-500.0,0.00019178,2]
[350017180,1737569433226,-500.0,0.00019178,2]
[350017182,1737569433236,-500.0,0.00019178,2]
[350017185,1737569433246,-771.81,0.00019178,2]
[350017187,1737569433256,-500.0,0.00019178,2]
[350017189,1737569433265,-500.0,0.00019178,2]
[350017191,1737569433275,-500.0,0.00019178,2]
[350017193,1737569433285,-711.93,0.00019178,2]
[350017195,1737569433295,-500.0,0.00019178,2]
[350017197,1737569433305,-500.0,0.00019178,2]
[350017199,1737569433314,-500.0,0.00019178,2]
[350017201,1737569433323,-571.69,0.00019178,2]
[350017203,1737569433332,-500.0,0.00019178,2]
[350017205,1737569433344,-823.34,0.00019178,2]
[350017207,1737569433356,-500.0,0.00019178,2]
[350017209,1737569433365,-382.96038627,0.00019178,2]
[350017211,1737569433376,-1234.7,0.00019178,2]
[350017213,1737569433385,-500.0,0.00019178,2]
[350017215,1737569433396,-500.0,0.00019178,2]
[350017217,1737569433407,-977.98,0.00019178,2]
[350017231,1737569433534,-2243.37,0.00019178,2]
[350017233,1737569433544,-2713.27,0.00019178,2]
[350017235,1737569433553,-500.0,0.00019178,2]
[350017237,1737569433563,-500.0,0.00019178,2]
[350017239,1737569433572,-1033.26,0.00019178,2]
[350017241,1737569433583,-500.0,0.00019178,2]
[350017243,1737569433592,-1101.67,0.00019178,2]
[350017245,1737569433603,-500.0,0.00019178,2]
[350017247,1737569433612,-9475.55,0.00019178,2]
[350017249,1737569433622,-1453.25,0.00019178,2]
[350017251,1737569433632,-500.0,0.00019178,2]
[350017253,1737569433642,-500.0,0.00019178,2]
[350017255,1737569433652,-2077.16,0.00019178,2]
[350017257,1737569433662,-610.37,0.00019178,2]
[350017259,1737569433672,-731.28,0.00019178,2]
[350017261,1737569433682,-4304.67,0.00019178,2]
[350017263,1737569433692,-500.0,0.00019178,2]
[350017265,1737569433702,-500.0,0.00019178,2]
[350017268,1737569433712,-1312.04,0.00019178,2]
[350017270,1737569433721,-500.0,0.00019178,2]
[350017272,1737569433731,-654.51,0.00019178,2]
[350017273,1737569433741,-500.0,0.00019178,2]
[350017276,1737569433752,-25331.73,0.00019178,2]
[350017278,1737569433761,-500.0,0.00019178,2]
[350017280,1737569433771,-500.0,0.00019178,2]
[350017282,1737569433781,-500.0,0.00019178,2]
[350017283,1737569433790,-1107.49,0.00019178,2]
[350017285,1737569433800,-500.0,0.00019178,2]
[350017288,1737569433811,-500.0,0.00019178,2]
[350017290,1737569433820,-550.41,0.00019178,2]
[350017292,1737569433830,-634.44,0.00019178,2]
[350017294,1737569433840,-6727.37,0.00019178,2]
[350017296,1737569433849,-2241.93,0.00019178,2]
[350017297,1737569433859,-829.91,0.00019178,2]
[350017299,1737569433868,-540.32,0.00019178,2]
[350017302,1737569433878,-2534.25,0.00019178,2]
[350017304,1737569433888,-500.0,0.00019178,2]
[350017306,1737569433897,-1348.43,0.00019178,2]
[350017308,1737569433907,-12180.05,0.00019178,2]
[350017310,1737569433916,-252.21120324,0.00019178,2]
[350018683,1737569864835,170.928825,0.00013973,2]
[350018766,1737570632749,-333.27342064,0.0001789,2]
[350018768,1737570632760,-5217.0439193,0.00018071,2]
[350018770,1737570632770,-158.0,0.00018233,2]
[350018772,1737570632779,-389.991,0.0001848,2]
[350018774,1737570632787,-196.91241669,0.000188,2]
[350018775,1737570632797,-885.07675228,0.00018875,2]
[350018777,1737570632806,-300.0,0.00018884,2]
[350018779,1737570632815,-4751.95125265,0.00018885,2]
[350018781,1737570632825,-259.7206721,0.000189,2]
[350018783,1737570632834,-500.0,0.00018903,2]
[350018785,1737570632844,-302.90913937,0.00019,2]
[350018787,1737570632854,-302.8788636,0.00019,2]
[350018789,1737570632863,-178.96850417,0.00019077,2]
[350018791,1737570632872,-178.96850414,0.00019112,2]
[350018793,1737570632882,-178.96850414,0.00019146,2]
[350018795,1737570632891,-152.0,0.00019147,2]
[350018797,1737570632900,-385.12828622,0.00019176,2]
[350018799,1737570632909,-503.42511213,0.00019177,2]
[350018801,1737570632918,-588.68497984,0.00019177,2]
[350018803,1737570632927,-500.0,0.00019177,2]
[350018805,1737570632937,-500.0,0.00019177,2]
[350018807,1737570632946,-500.0,0.00019177,2]
[350018809,1737570632955,-500.0,0.00019177,2]
[350018811,1737570632965,-500.0,0.00019177,2]
[350018813,1737570632974,-372.78553753,0.00019177,2]
[350018815,1737570632983,-500.0,0.00019177,2]
[350018817,1737570632992,-500.0,0.00019177,2]
[350018818,1737570633002,-500.0,0.00019177,2]
[350018820,1737570633011,-500.0,0.00019177,2]
[350018822,1737570633021,-500.0,0.00019177,2]
[350018824,1737570633031,-500.0,0.00019177,2]
[350018826,1737570633040,-500.0,0.00019177,2]
[350018829,1737570633050,-371.17594691,0.00019177,2]
[350018830,1737570633059,-451.23222415,0.00019177,2]
[350018832,1737570633070,-500.0,0.00019177,2]
[350018834,1737570633079,-500.0,0.00019177,2]
[350018836,1737570633089,-500.0,0.00019177,2]
[350018838,1737570633099,-500.0,0.00019177,2]
[350018840,1737570633108,-500.0,0.00019177,2]
[350018842,1737570633118,-500.0,0.00019177,2]
[350018844,1737570633127,-500.0,0.00019177,2]
[350018846,1737570633136,-500.0,0.00019177,2]
[350018848,1737570633147,-503.21138459,0.00019177,2]
[350018850,1737570633157,-500.0,0.00019177,2]
[350018852,1737570633166,-500.0,0.00019177,2]
[350018854,1737570633176,-500.0,0.00019177,2]
[350018856,1737570633185,-500.0,0.00019177,2]
[350018858,1737570633195,-500.0,0.00019177,2]
[350018860,1737570633204,-500.0,0.00019177,2]
[350018862,1737570633214,-500.0,0.00019177,2]
[350018864,1737570633223,-500.0,0.00019177,2]
[350018866,1737570633233,-558.32012579,0.00019177,2]
[350018868,1737570633243,-500.0,0.00019177,2]
[350018870,1737570633252,-500.0,0.00019177,2]
[350018872,1737570633262,-500.0,0.00019177,2]
[350018874,1737570633272,-500.0,0.00019177,2]
[350018876,1737570633282,-500.0,0.00019177,2]
[350018878,1737570633292,-500.0,0.00019177,2]
[350018880,1737570633301,-500.0,0.00019177,2]
[350018882,1737570633311,-500.0,0.00019177,2]
[350018884,1737570633321,-500.0,0.00019177,2]
[350018886,1737570633331,-500.0,0.00019177,2]
[350018888,1737570633343,-500.0,0.00019177,2]
[350018890,1737570633353,-500.0,0.00019177,2]
[350018892,1737570633364,-500.0,0.00019177,2]
[350018894,1737570633375,-500.0,0.00019177,2]
[350018896,1737570633385,-500.0,0.00019177,2]
[350018898,1737570633394,-500.0,0.00019177,2]
[350018900,1737570633405,-500.0,0.00019177,2]
[350018902,1737570633415,-500.0,0.00019177,2]
[350018904,1737570633425,-500.0,0.00019177,2]
[350018905,1737570633436,-500.0,0.00019177,2]
[350018907,1737570633446,-500.0,0.00019177,2]
[350018909,1737570633456,-500.0,0.00019177,2]
[350018911,1737570633465,-500.0,0.00019177,2]
[350018912,1737570633474,-500.0,0.00019177,2]
[350018914,1737570633484,-500.0,0.00019177,2]
[350018916,1737570633494,-500.0,0.00019177,2]
[350018919,1737570633505,-500.0,0.00019177,2]
[350018921,1737570633514,-500.0,0.00019177,2]
[350018922,1737570633524,-500.0,0.00019177,2]
[350018924,1737570633533,-500.0,0.00019177,2]
[350018925,1737570633543,-500.0,0.00019177,2]
[350018927,1737570633552,-500.0,0.00019177,2]
[350018928,1737570633562,-500.0,0.00019177,2]
[350018930,1737570633572,-500.0,0.00019177,2]
[350018931,1737570633582,-500.0,0.00019177,2]
[350018933,1737570633594,-500.0,0.00019177,2]
[350018935,1737570633604,-500.0,0.00019177,2]
[350018936,1737570633614,-500.0,0.00019177,2]
[350018937,1737570633623,-500.0,0.00019177,2]
[350018938,1737570633633,-500.0,0.00019177,2]
[350018939,1737570633643,-524.49887567,0.00019177,2]
[350018940,1737570633653,-500.0,0.00019177,2]
[350018941,1737570633662,-500.0,0.00019177,2]
[350018942,1737570633672,-500.0,0.00019177,2]
[350018943,1737570633681,-500.0,0.00019177,2]
[350018944,1737570633695,-500.0,0.00019177,2]
[350018945,1737570633705,-500.0,0.00019177,2]
[350018946,1737570633714,-500.0,0.00019177,2]
[350018947,1737570633724,-500.0,0.00019177,2]
[350018948,1737570633734,-500.0,0.00019177,2]
[350018949,1737570633743,-500.0,0.00019177,2]
[350018950,1737570633752,-500.0,0.00019177,2]
[350018951,1737570633761,-500.0,0.00019177,2]
[350018952,1737570633771,-500.0,0.00019177,2]
[350018953,1737570633780,-500.0,0.00019177,2]
[350018954,1737570633789,-500.0,0.00019177,2]
[350018955,1737570633799,-587.90676517,0.00019177,2]